[Event "81st Georgian Women-ch 2024"]
[Site "Tbilisi"]
[Date "2024.02.17"]
[Round "8.5"]
[White "Batsiashvili, Nino"]
[Black "Tsetskhladze, Mariam"]
[Result "1-0"]
[ECO "C10"]
[WhiteElo "2451"]
[BlackElo "1912"]
[Annotator "RC"]
[PlyCount "119"]
[EventDate "2024.02.08"]
[EventType "tourn"]
[EventCountry "GEO"]
[SourceTitle "playchess.com"]
[Source "ChessBase"]
[SourceQuality "1"]
[TimeControl "40/5400+30:1800+30"]

1. d4 {[%emt 0:00:01]} d5 {[%emt 0:00:44]} 2. Nc3 {[%emt 0:01:10]} e6 {[%emt 0:04:45]} 3. e4 {[%emt 0:02:23]} dxe4 {[%emt 0:02:14]} 4. Nxe4 {[%emt 0:00:07]} Nd7 {[%emt 0:01:08]} 5. Nf3 {[%emt 0:01:48]} Ngf6 {[%emt 0:00:10]} 6. Ng3 {[%emt 0:00:48]} c5 {[%emt 0:03:33]} 7. Be2 {[%emt 0:01:44]} Be7 {[%emt 0:24:34]} 8. O-O {[%emt 0:02:46]} O-O {[%emt 0:00:33]} 9. c4 {[%emt 0:01:16]} cxd4 {[%emt 0:07:48]} 10. Nxd4 {[%emt 0:00:17]} a6 {[%emt 0:00:40]} 11. Be3 {[%emt 0:04:57]} Qc7 {[%emt 0:06:08]} 12. Rc1 {[%emt 0:10:31]} b6 {[%emt 0:05:17]} 13. Bf3 {[%emt 0:04:11]} Bb7 {[%emt 0:00:28]} 14. Bxb7 {[%emt 0:00:52]} Qxb7 {[%emt 0:00:02]} 15. Qe2 {[%emt 0:00:02]} Rac8 {[%emt 0:05:05]} 16. Rfd1 {[%emt 0:00:36]} Rfe8 {[%emt 0:09:23]} 17. a3 {[%emt 0:01:23]} Bf8 {[%emt 0:05:36]} 18. h3 {[%emt 0:04:30]} h6 {[%emt 0:00:27]} 19. Nf1 {[%emt 0:03:51]} Nb8 {[%emt 0:08:05]} 20. b4 {[%emt 0:01:47]} Red8 {[%emt 0:01:56]} 21. Qb2 {[%emt 0:04:35]} Ne4 {[%emt 0:08:18]} 22. Nd2 {[%emt 0:04:35]} Nd6 {[%emt 0:03:32]} 23. Qb3 {[%emt 0:04:10]} Nc6 {[%emt 0:00:38]} 24. N2f3 {[%emt 0:04:14]} Nxd4 {[%emt 0:00:32]} 25. Nxd4 {[%emt 0:00:15]} e5 {[%emt 0:00:49]} 26. Nf3 {[%emt 0:00:16]} Nf5 {[%emt 0:00:27]} 27. Nxe5 {[%emt 0:02:29]} Nxe3 {[%emt 0:00:32]} 28. Qxe3 {[%emt 0:00:50]} Rxd1+ {[%emt 0:00:22]} 29. Rxd1 {[%emt 0:00:01]} Re8 {[%emt 0:00:34]} 30. Qd4 {[%emt 0:03:06]} a5 {[%emt 0:00:31]} 31. c5 {[%emt 0:05:25]} axb4 {[%emt 0:00:33]} 32. axb4 {[%emt 0:00:01]} bxc5 {[%emt 0:00:27]} 33. bxc5 {[%emt 0:00:02]} Qc7 {[%emt 0:00:35]} 34. Nd7 {[%emt 0:00:15]} Rc8 {[%emt 0:00:29]} 35. Rc1 {[%emt 0:03:34]} Rd8 {[%emt 0:00:22]} 36. c6 {[%emt 0:00:06]} Bd6 {[%emt 0:00:11]} 37. Rd1 {[%emt 0:01:41]} Be7 {[%emt 0:00:58]} 38. Qd5 {[%emt 0:01:27]} Rc8 {[%emt 0:00:14]} 39. Rc1 {[%emt 0:01:00]} Bd6 {[%emt 0:00:06]} 40. Rc3 {[%emt 0:00:00]} Ra8 {[%emt 0:00:00]} 41. g3 {[%emt 0:03:41]} Ra5 {[%emt 0:16:57]} 42. Qe4 {[%emt 0:02:03]} Qd8 {[%emt 0:06:23]} 43. Kg2 {[%emt 0:00:42]} Bc7 {[%emt 0:02:02]} 44. Re3 {[%emt 0:01:01]} Ra8 {[%emt 0:01:45]} 45. h4 {[%emt 0:00:16]} Rc8 {[%emt 0:00:27]} 46. Qg4 {[%emt 0:08:50]} Kh8 {[%emt 0:01:51]} 47. Qf5 {[%emt 0:00:14]} Kg8 {[%emt 0:01:13]} 48. Re4 {[%emt 0:02:06]} Bd6 {[%emt 0:01:45]} 49. Qd5 {[%emt 0:02:12]} Bc7 {[%emt 0:00:44]} 50. Qd4 {[%emt 0:00:46]} f6 {[%emt 0:01:58]} 51. Re6 {[%emt 0:02:32]} Kh8 {[%emt 0:00:52]} 52. Qe4 {[%emt 0:00:28]} Qg8 {[%emt 0:01:06]} 53. h5 {[%emt 0:01:11]} Be5 {[%emt 0:00:32]} 54. Nxe5 {[%emt 0:00:28]} fxe5 {[%emt 0:00:18]} 55. Qxe5 {[%emt 0:00:04]} Kh7 {[%emt 0:00:47]} 56. c7 {[%emt 0:00:26]} Qf8 {[%emt 0:00:28]} 57. Re7 {[%emt 0:00:21]} Ra8 {[%emt 0:00:27]} 58. Rd7 {[%emt 0:01:10]} Rc8 {[%emt 0:00:31]} 59. Qe4+ {[%emt 0:00:20]} Kh8 {[%emt 0:00:05]} 60. Qd3 {[%emt 0:00:24]} 1-0

[Event "81st Georgian Women-ch 2024"]
[Site "Tbilisi"]
[Date "2024.02.18"]
[Round "9.1"]
[White "Tsetskhladze, Mariam"]
[Black "Melia, Salome"]
[Result "0-1"]
[ECO "B28"]
[WhiteElo "1912"]
[BlackElo "2355"]
[Annotator "TA"]
[PlyCount "78"]
[EventDate "2024.02.08"]
[EventType "tourn"]
[EventCountry "GEO"]
[SourceTitle "playchess.com"]
[Source "ChessBase"]
[SourceQuality "1"]
[TimeControl "40/5400+30:1800+30"]

{[%evp 9,78,38,37,33,38,35,38,31,38,21,31,0,39,21,31,23,34,28,41,0,0,8,0,2,8,0,0,0,0,-10,-17,-15,0,-61,-58,-64,-70,-70,-70,-67,-72,-65,-30,-51,-50,-49,-50,-52,-51,-52,-41,-89,-44,-58,-45,-45,-45,-50,-45,-63,-62,-75,-75,-671,-719,-1059,-1001,-1168,-672,-575,-570]} 1. e4 {[%emt 0:00:04]} c5 {[%emt 0:00:02]} 2. Nf3 {[%emt 0:00:08]} a6 {[%emt 0:00:05]} 3. g3 {[%emt 0:02:20]} Nc6 {[%emt 0:02:28]} 4. Bg2 {[%emt 0:04:17]} d6 {[%emt 0:04:31]} 5. d4 {[%emt 0:03:06]} cxd4 {[%emt 0:02:21]} 6. Nxd4 {[%emt 0:00:27]} Bd7 {[%emt 0:00:12]} 7. O-O {[%emt 0:04:07]} g6 {[%emt 0:01:19]} 8. c4 {[%emt 0:11:52] White is slightly better.} Bg7 {[%emt 0:00:27]} 9. Nxc6 {[%emt 0:10:09]} Bxc6 {[%emt 0:00:18]} 10. Nc3 {[%emt 0:01:04]} Nf6 {[%emt 0:06:05]} 11. Be3 {[%emt 0:01:37]} O-O {[%emt 0:03:46]} 12. Rc1 {[%emt 0:05:42][%cal Ba1c1,Bc1c2,Bc2c4][%mdl 32]} Nd7 {[%emt 0:06:30]} 13. Qe2 {[%emt 0:05:32]} b5 {[%emt 0:07:13]} 14. cxb5 {[%emt 0:05:54]} axb5 {[%emt 0:00:27]} 15. Nxb5 {[%emt 0:05:54]} Bxb5 {[%emt 0:01:39]} 16. Qxb5 {[%emt 0:00:02]} Rxa2 {[%emt 0:01:04]} 17. Rc2 {[%emt 0:11:50]} Ne5 {[%emt 0:01:24]} 18. Qe2 {[%emt 0:06:43]} Qb8 {[%emt 0:07:01]} 19. f4 {[%emt 0:04:23]} Nd7 {[%emt 0:00:24][%cal Be5d7,Bd7f6,Bf6e4][%mdl 32]} 20. Bh3 {[%emt 0:02:54]} Nf6 {[%emt 0:06:07]} 21. Bd4 {[%emt 0:00:28]} (21. Bg2 $11) 21... Ra4 $15 {[%emt 0:05:07]} 22. Rc4 {[%emt 0:02:25]} Qb5 {[%emt 0:17:51]} 23. Rfc1 {[%emt 0:00:23][%cal Bf1c1,Bc1c4,Bc4e4,Be4e6][%mdl 32]} e5 {[%emt 0:06:20]} 24. fxe5 {[%emt 0:04:19] [#]} Nxe4 {[%emt 0:01:50][%cal Oe4d2]} 25. Bf1 {[%emt 0:05:50][%cal Oc4a4] Black must now prevent Rxa4!} dxe5 {[%emt 0:10:00] And now ...Rxc4 would win. Black is more active.} 26. Bxe5 {[%emt 0:01:20]} Rxc4 {[%emt 0:06:01]} 27. Rxc4 {[%emt 0:00:05] Bxg7 is the strong threat.} Qb6+ {[%emt 0:00:54]} (27... Qxe5 {simplifies} 28. Rxe4 Qd5 29. b4 Bd4+) 28. Kg2 {[%emt 0:00:06]} Bxe5 {[%emt 0:00:43]} 29. Rxe4 {[%emt 0:01:20]} Bxb2 {[%emt 0:00:53]} 30. Qf3 {[%emt 0:00:26]} (30. Qb5 $15 {feels stronger.} Qb8 31. Bc4) 30... Kh8 {[%emt 0:01:15]} 31. Bc4 {[%emt 0:00:24]} f5 {[%emt 0:00:43]} 32. Re6 {[%emt 0:00:40]} Qd4 {[%emt 0:00:47]} 33. Qd3 {[%emt 0:00:29]} Qc5 {[%emt 0:00:37]} 34. Qe2 {[%emt 0:00:23]} Bf6 {[%emt 0:00:29]} 35. Kf1 {[%emt 0:00:42]} Kg7 {[%emt 0:00:16]} 36. Bb5 $2 {[%emt 0:00:27][%mdl 8192] Loses the game.} (36. Bb3 $17) 36... Rb8 $19 {[%emt 0:00:28] Black is clearly winning.} 37. Bd3 {[%emt 0:00:17]} Qd5 {[%emt 0:00:46] [#] Strongly threatening ...Qh1+.} 38. Re7+ {[%emt 0:00:47]} Bxe7 {[%emt 0:00:33]} 39. Qxe7+ {[%emt 0:00:04]} Kg8 {[%emt 0:00:22] Weighted Error Value: White=0.50/Black=0.16 (very precise) .  Loses game:     	White=1     	---        Mistake:       	White=2     	---        Inaccurate:     	White=3     	Black=3      OK:         	White=7     	Black=17     Best:        	---       	Black=3} 0-1

[Event "81st Georgian Women-ch 2024"]
[Site "Tbilisi"]
[Date "2024.02.18"]
[Round "9.2"]
[White "Kirtadze, Anastasia"]
[Black "Batsiashvili, Nino"]
[Result "1/2-1/2"]
[ECO "C64"]
[WhiteElo "1981"]
[BlackElo "2451"]
[Annotator "TA"]
[PlyCount "90"]
[EventDate "2024.02.08"]
[EventType "tourn"]
[EventCountry "GEO"]
[SourceTitle "playchess.com"]
[Source "ChessBase"]
[SourceQuality "1"]
[TimeControl "40/5400+30:1800+30"]

{[%evp 10,90,73,35,46,37,50,11,26,27,32,37,35,0,10,0,0,0,0,-74,-64,-66,-66,-58,-64,-70,42,31,30,0,0,0,0,0,0,0,0,0,0,0,33,37,110,0,-6,-4,-5,-75,-34,-57,-78,-54,-44,-104,-23,-33,8,8,8,8,4,-33,-41,-39,-31,-38,-35,-36,-39,-42,-31,-32,-37,-23,-14,-16,-8,-8,0,0,0,0,0]} 1. e4 {[%emt 0:00:03]} e5 {[%emt 0:00:02]} 2. Nf3 {[%emt 0:00:07]} Nc6 {[%emt 0:00:04]} 3. Bb5 {[%emt 0:00:07]} a6 {[%emt 0:00:07]} 4. Ba4 {[%emt 0:00:07]} Bc5 {[%emt 0:00:05]} 5. O-O {[%emt 0:00:37]} Nge7 {[%emt 0:00:24]} 6. c3 {[%emt 0:01:42]} (6. Nxe5 $5 Nxe5 7. d4 $14) 6... Ba7 {[%emt 0:00:21]} 7. d4 {[%emt 0:01:00]} Ng6 {[%emt 0:00:07]} 8. Bxc6 {[%emt 0:11:11]} dxc6 {[%emt 0:00:09]} 9. Nxe5 {[%emt 0:00:04]} Nxe5 {[%emt 0:00:08]} 10. dxe5 {[%emt 0:00:07]} Qe7 {[%emt 0:04:52]} 11. Qh5 {[%emt 0:04:33]} O-O {[%emt 0:00:09]} 12. Bf4 {[%emt 0:08:24]} f5 $1 {[%emt 0:03:53]} 13. exf6 {[%emt 0:03:53]} Rxf6 {[%emt 0:00:48]} (13... Qxe4 {keeps more tension.} 14. Be5 Rf7 15. Nd2 Qf5) 14. Qe5 {[%emt 0:05:42]} (14. Bg5 $11 {remains equal.} Rxf2 15. Rxf2 (15. Bxe7 $2 Rf5+ $19) 15... Bxf2+ 16. Kxf2 Qc5+ 17. Kg3 Qe5+ 18. Kf2) 14... Qf7 $17 {[%emt 0:03:19]} 15. Bg3 {[%emt 0:02:44][%cal Ob1d2]} Bg4 {[%emt 0:00:50]} 16. Nd2 {[%emt 0:08:04][%cal Oa1e1]} Rf8 {[%emt 0:24:54]} 17. Rae1 {[%emt 0:10:55] Against Be2} Qxa2 {[%emt 0:15:40]} ({Black should play} 17... Rxf2 $1 $15 18. Bxf2 Bxf2+ 19. Kh1 Qd7 (19... Qxa2 20. Rxf2 Rxf2 21. Nf3 $11)) 18. c4 $1 $14 {[%emt 0:03:02]} Qa4 {[%emt 0:03:24]} 19. Qc3 {[%emt 0:07:21] Against Qb4} (19. Qxc7 Qb4 20. Nf3 Bb8 (20... Qxc4 21. Ne5 $14) (20... Qxb2 $2 21. Be5 $18) (20... Bxf3 21. gxf3 Rxf3 22. Rd1 $17) 21. Qxb8 Rxb8 22. Bxb8 Re6 $19 (22... Qxb2 23. Be5 $11) (22... Qxc4 23. Ne5 $17) (22... Bxf3 $2 23. gxf3 Rxf3 24. Bg3 $19)) 19... Bc5 {[%emt 0:00:52]} 20. e5 {[%emt 0:03:51]} (20. Ra1 $5 Qb4 $8 21. Nb3 $11) 20... Rg6 {[%emt 0:00:09]} 21. b3 {[%emt 0:07:19]} Qb4 {[%emt 0:01:26]} 22. Qd3 {[%emt 0:00:17]} Bf5 {[%emt 0:01:27]} 23. Ne4 {[%emt 0:03:20]} a5 {[%emt 0:05:30]} 24. Kh1 {[%emt 0:05:12]} b5 {[%emt 0:02:41]} 25. cxb5 {[%emt 0:03:01]} Qd4 {[%emt 0:06:42]} ({Better is} 25... Be7 $14) 26. Qxd4 {[%emt 0:04:10]} (26. Nf6+ $1 $16 gxf6 27. Qxf5 fxe5 28. Qc2 (28. Qxe5 Qxe5 29. Rxe5 Bd6 $14) 28... cxb5 29. Re4 (29. Bxe5 Qd5 $18) (29. Rxe5 Rxg3 30. Rxc5 Rxg2 $16)) 26... Bxd4 $11 {[%emt 0:00:13]} 27. bxc6 {[%emt 0:00:13]} Rxc6 {[%emt 0:00:08]} 28. f4 {[%emt 0:01:05]} (28. Rd1 $11 Bb2 29. Ng5) 28... Rb8 $17 {[%emt 0:02:16][%cal Oc6c2]} 29. Rd1 {[%emt 0:01:09]} Bb2 {[%emt 0:02:21] This pair of bishops is nice.} ({Of course not} 29... Bxe4 30. Rxd4 Bf5 31. Rd5 $11) 30. Rfe1 {[%emt 0:01:24]} h6 {[%emt 0:02:22]} ({Don't play} 30... Rxb3 31. Rd8+ Kf7 32. Ng5+ Ke7 33. Rg8) 31. Bh4 {[%emt 0:01:31]} (31. Bf2 $15) 31... Rxb3 {[%emt 0:00:44]} (31... Be6 $17 32. Nd2 Rc2 (32... Bxb3 $2 {too greedy.} 33. Nxb3 Rxb3 34. Rd8+ Kf7 35. Rd7+ Ke6 36. Rxg7 $16)) 32. Ng3 $11 {[%emt 0:01:04]} Rxg3 {[%emt 0:00:40]} 33. hxg3 {[%emt 0:01:37]} a4 {[%emt 0:00:49]} 34. Rd8+ {[%emt 0:00:31]} Kf7 {[%emt 0:00:41] [#] ...Ra6 would now be deadly.} 35. g4 {[%emt 0:00:52]} Bxg4 {[%emt 0:00:26]} 36. Ra8 {[%emt 0:01:11] Repels Ra6} a3 {[%emt 0:00:04]} 37. Re3 $1 {[%emt 0:00:34]} Be6 {[%emt 0:01:57] Hoping for ...a2.} 38. Rexa3 {[%emt 0:00:26]} Bxa3 {[%emt 0:00:20]} 39. Rxa3 $15 {[%emt 0:00:05][%mdl 4096] Endgame. KRB-KRB} Rc2 {[%emt 0:00:06]} 40. Kg1 {[%emt 0:00:00]} Bd5 {[%emt 0:00:00]} 41. Bf2 {[%emt 0:03:47]} Ke6 {[%emt 0:06:49]} 42. Rg3 {[%emt 0:03:17] The position is equal.} Kf5 {[%emt 0:00:42]} 43. Rxg7 {[%emt 0:00:29]} Kxf4 {[%emt 0:00:02][%cal Oc7c5]} 44. e6 {[%emt 0:01:42]} Bxe6 {[%emt 0:00:19]} 45. Bg3+ {[%emt 0:00:07]} Kf5 {[%emt 0:00:04] Weighted Error Value: White=0.17 (very precise) /Black=0.13 (very precise) .  Mistake:       	White=4     	Black=3      Inaccurate:     	White=3     	Black=2      OK:         	White=21    	Black=13     Best:        	White=1     	Black=1      Strong:       	White=2     	Black=1} 1/2-1/2

[Event "81st Georgian Women-ch 2024"]
[Site "Tbilisi"]
[Date "2024.02.18"]
[Round "9.3"]
[White "Lomaia, Diana"]
[Black "Khotenashvili, Bella"]
[Result "0-1"]
[ECO "E81"]
[WhiteElo "2037"]
[BlackElo "2467"]
[Annotator "TA"]
[PlyCount "76"]
[EventDate "2024.02.08"]
[EventType "tourn"]
[EventCountry "GEO"]
[SourceTitle "playchess.com"]
[Source "ChessBase"]
[SourceQuality "1"]
[TimeControl "40/5400+30:1800+30"]

{[%evp 16,76,21,0,-7,-8,20,-6,0,-16,2,-48,-47,-106,-103,-91,-82,-87,-62,-87,-37,-22,-21,-45,-54,-67,-62,-62,-72,-178,-194,-170,-169,-202,-211,-289,-228,-251,-251,-270,-251,-412,-390,-423,-413,-493,-489,-926,-913,-829,-791,-910,-781,-755,-754,-1931,-1083,-1454,-1918,-2135,-1871,-5235,-5235]} 1. d4 {[%emt 0:01:38][%cal Bd2d4,Bd4d5][%mdl 32]} g6 {[%emt 0:00:12]} 2. c4 {[%emt 0:00:07]} Bg7 {[%emt 0:00:06]} 3. Nc3 {[%emt 0:01:13]} Nf6 {[%emt 0:00:23]} 4. f3 {[%emt 0:00:57]} c5 {[%emt 0:02:47]} 5. d5 {[%emt 0:00:39]} e6 {[%emt 0:00:06]} 6. e4 {[%emt 0:00:22]} d6 {[%emt 0:00:20]} 7. Bd3 {[%emt 0:05:00]} O-O {[%emt 0:01:02]} 8. Nge2 {[%emt 0:00:38]} a6 {[%emt 0:00:53]} 9. O-O {[%emt 0:03:15]} exd5 {[%emt 0:03:48]} 10. exd5 {[%emt 0:00:30]} Ne8 {[%emt 0:02:20]} 11. Be3 {[%emt 0:06:45]} Nd7 {[%emt 0:01:08] The position is equal.} 12. Qd2 {[%emt 0:01:20]} Ne5 {[%emt 0:00:55]} 13. Rab1 {[%emt 0:05:16]} ({Better is} 13. a4 $11) 13... b5 $15 {[%emt 0:17:40]} 14. cxb5 {[%emt 0:02:10]} (14. b3 $15) 14... Nxd3 $17 {[%emt 0:02:15]} 15. Qxd3 {[%emt 0:00:06]} axb5 {[%emt 0:00:03]} 16. a3 {[%emt 0:09:59]} Nc7 {[%emt 0:07:14]} 17. Qd2 {[%emt 0:03:35]} Re8 {[%emt 0:03:35]} (17... Bb7 $17) 18. Bg5 $15 {[%emt 0:02:09]} f6 {[%emt 0:01:25]} 19. Bf4 {[%emt 0:06:20]} Bb7 {[%emt 0:05:21]} 20. Rbd1 {[%emt 0:02:46]} f5 {[%emt 0:07:06]} 21. b4 $1 {[%emt 0:07:09]} c4 $36 {[%emt 0:04:30][%mdl 2048] Keeping White busy. Black is more active.} 22. Nd4 {[%emt 0:06:36] Black converts the advantage convincingly.} (22. Ra1 $17 {is a better defense.}) 22... Rxa3 $19 {[%emt 0:02:49]} ({And not} 22... Nxd5 23. Nxd5 Bxd5 24. Nxf5 Bxf3 25. Rxf3 $11 (25. Nxg7 $2 Re2 $19)) 23. Kh1 {[%emt 0:05:01]} Qd7 {[%emt 0:07:22]} ({Inferior is} 23... Bxd5 24. Ndxb5 Bxc3 25. Nxc3 $16) 24. Qc1 {[%emt 0:08:44]} Ra6 {[%emt 0:08:44]} 25. Rf2 {[%emt 0:10:15]} Bxd5 {[%emt 0:04:29]} 26. Rfd2 {[%emt 0:02:02]} Bf7 {[%emt 0:01:32]} 27. Nde2 {[%emt 0:01:10]} d5 {[%emt 0:02:03]} 28. Bxc7 $2 {[%emt 0:00:39]} (28. h3 {keeps fighting.}) 28... Qxc7 {[%emt 0:00:06]} 29. Nxb5 {[%emt 0:00:34]} Qb7 {[%emt 0:02:12]} 30. Nbc3 {[%emt 0:00:37]} Qxb4 {[%emt 0:01:08] [#] ...Ra3 is the strong threat. Black is clearly winning.} 31. Rxd5 {[%emt 0:03:08]} (31. Qc2 $142) 31... Bxd5 {[%emt 0:01:01]} 32. Nxd5 {[%emt 0:00:02]} Qc5 {[%emt 0:00:36]} 33. Nec3 {[%emt 0:00:45]} Rae6 {[%emt 0:03:27]} 34. Nf4 {[%emt 0:03:39]} Rd6 {[%emt 0:00:44]} 35. Re1 {[%emt 0:01:04]} Rxe1+ {[%emt 0:00:11]} 36. Qxe1 {[%emt 0:00:01]} Qe5 {[%emt 0:00:51][%cal Re5e1] [#]} 37. Nfe2 {[%emt 0:01:02]} Rd3 {[%emt 0:01:31][%cal Rd3c3]} 38. f4 {[%emt 0:00:48]} Qe3 {[%emt 0:01:40] Weighted Error Value: White=0.85/Black=0.14 (very precise) .  Mistake:       	White=5     	Black=1      Inaccurate:     	White=2     	Black=1      OK:         	White=4     	Black=11     Best:        	---       	Black=2      Strong:       	White=1     	---} 0-1

[Event "81st Georgian Women-ch 2024"]
[Site "Tbilisi"]
[Date "2024.02.18"]
[Round "9.4"]
[White "Javakhishvili, Lela"]
[Black "Donghvani, Nia"]
[Result "1-0"]
[ECO "E14"]
[WhiteElo "2433"]
[BlackElo "2036"]
[Annotator "TA"]
[PlyCount "91"]
[EventDate "2024.02.08"]
[EventType "tourn"]
[EventCountry "GEO"]
[SourceTitle "playchess.com"]
[Source "ChessBase"]
[SourceQuality "1"]
[TimeControl "40/5400+30:1800+30"]

{[%evp 21,91,16,33,29,38,28,55,39,62,59,84,76,77,68,127,79,75,35,45,58,137,136,129,140,143,144,145,139,147,145,143,143,137,108,136,138,158,145,187,190,177,134,195,183,421,417,434,289,532,517,543,531,708,664,1125,1122,1310,1422,1478,1427,1384,902,972,950,1208,1095,1024,920,1040,1006,1102,1002]} 1. d4 {[%emt 0:00:04]} Nf6 {[%emt 0:00:03]} 2. c4 {[%emt 0:00:10]} e6 {[%emt 0:00:04]} 3. Nf3 {[%emt 0:00:16]} d5 {[%emt 0:00:06]} 4. Nc3 {[%emt 0:00:23]} Nbd7 {[%emt 0:00:51]} 5. Qc2 {[%emt 0:00:42]} c6 {[%emt 0:02:03]} 6. e3 {[%emt 0:02:07]} Be7 {[%emt 0:00:25]} 7. b3 {[%emt 0:05:18]} b6 {[%emt 0:02:23]} 8. Bd3 {[%emt 0:00:19]} Bb7 {[%emt 0:00:10]} 9. O-O {[%emt 0:00:12]} O-O {[%emt 0:02:08]} 10. Bb2 {[%emt 0:00:42]} Rc8 {[%emt 0:00:57]} 11. Qe2 {[%emt 0:04:11]} c5 {[%emt 0:01:45]} 12. cxd5 {[%emt 1:22:06]} exd5 {[%emt 0:02:58]} 13. Rfd1 {[%emt 0:00:00]} Qc7 {[%emt 0:05:37]} 14. Rac1 {[%emt 0:00:00] White is slightly better.} Qb8 {[%emt 0:01:19]} 15. Bf5 {[%emt 0:00:00]} Rcd8 {[%emt 0:02:09]} 16. dxc5 {[%emt 0:00:00]} bxc5 {[%emt 0:02:33]} 17. Na4 {[%emt 0:00:00]} Ne4 {[%emt 0:20:55]} (17... d4 $14) 18. Nd2 {[%emt 0:00:00]} (18. Bxd7 $142 Rxd7 19. Nd2) 18... Nef6 $16 {[%emt 0:09:29]} 19. Bxf6 {[%emt 0:00:00]} Nxf6 {[%emt 0:00:05]} 20. Nxc5 {[%emt 0:00:00]} Bc6 {[%emt 0:05:04]} (20... Bxc5 $14 21. Rxc5 d4) 21. Nf3 {[%emt 0:00:00]} Qb6 {[%emt 0:02:20]} 22. Qc2 $36 {[%emt 0:00:00][%cal Oc5e6][%mdl 2048] Threatens to win with Ne6! White is on the roll.} Ba8 {[%emt 0:03:07]} 23. Na4 {[%emt 0:00:00]} Qb4 {[%emt 0:00:31]} 24. Qc7 {[%emt 0:00:00]} g6 {[%emt 0:05:45]} 25. Bh3 {[%emt 0:00:00] White is much more active.} a5 {[%emt 0:03:03]} 26. Nd4 {[%emt 0:00:00]} Bd6 {[%emt 0:02:31]} 27. Qc2 {[%emt 0:00:00]} Ne4 {[%emt 0:04:23]} 28. g3 {[%emt 0:00:00]} Qb7 {[%emt 0:01:34]} 29. Qe2 {[%emt 0:00:00]} Rde8 {[%emt 0:04:08]} 30. Qb5 {[%emt 0:00:00]} Qe7 {[%emt 0:00:07]} 31. Rc2 {[%emt 0:00:00][%cal Oa4b6]} Qg5 {[%emt 0:01:11]} (31... Bb4 $16 {was necessary.} 32. Qd7 Qxd7 33. Bxd7 Rb8) 32. Bg2 $18 {[%emt 0:00:00]} (32. Qxa5 Qh5 33. f3 Qxh3 34. fxe4 Bxg3 35. hxg3 Qxg3+ 36. Kf1 Qxe3 $14) 32... h5 $2 {[%emt 0:04:12] [#]} (32... Bb4 33. Bxe4 Rb8) 33. Nb6 {[%emt 0:00:00]} (33. Qxa5 h4 34. Nc3 Nxf2 35. Rxf2 hxg3 $18) 33... h4 {[%emt 0:03:20][%cal Rh4g3]} 34. Nf3 {[%emt 0:00:00] Excellent horsemanship.} (34. Qxa5 hxg3 35. hxg3 Bxg3 $11) 34... Qh5 {[%emt 0:00:05]} (34... Qe7 {was called for.} 35. Nxa8 (35. gxh4 Rb8 $17) (35. Nxd5 Bxd5 36. Rxd5 hxg3 $18) (35. Qxa5 Bb4 $18) (35. Nxh4 Rb8 $18) 35... hxg3) 35. Nxa8 {[%emt 0:00:00] White is clearly winning.} (35. Qxa5 h3 36. Nxa8 (36. Bh1 $2 Ng5 $19) 36... hxg2 37. Kxg2 Rxa8 38. Qxd5 Qxd5 39. Rxd5 Kg7 $15) ({Not} 35. Nxd5 Re5 36. Rc6 Rf5 $15 (36... Bxc6 37. Qxc6 hxg3 38. hxg3 $16)) 35... hxg3 {[%emt 0:00:05]} 36. hxg3 {[%emt 0:00:00]} Nf6 {[%emt 0:09:08]} 37. Nb6 {[%emt 0:00:00]} Rxe3 {[%emt 0:00:26]} 38. fxe3 {[%emt 0:00:00]} Qh6 {[%emt 0:00:39]} 39. Nxd5 {[%emt 0:00:00]} Nxd5 {[%emt 0:01:10]} 40. Qxd5 {[%emt 0:00:00]} Qxe3+ {[%emt 0:00:00]} 41. Kf1 {[%emt 0:00:00]} Bxg3 {[%emt 0:00:14]} 42. Qd4 {[%emt 0:00:58]} Qe6 {[%emt 0:00:37]} 43. Re2 {[%emt 0:00:29]} Qf5 {[%emt 0:00:04]} 44. Qd5 {[%emt 0:00:57]} Qf4 {[%emt 0:00:26]} 45. Qe5 {[%emt 0:00:47]} Qg4 {[%emt 0:00:44]} 46. Qg5 {[%emt 0:00:11] Weighted Error Value: White=0.19 (very precise) /Black=0.46.  Mistake:       	White=1     	Black=5      Inaccurate:     	White=2     	Black=3      OK:         	White=9     	Black=3      Best:        	White=2     	Black=1} 1-0